fUST/lending_fUST_20250701
["ID","MTS","AMOUNT","RATE_DAILY","PERIOD"]
[368819204,1751371850280,-196.0915788,0.00019178,2]
[368819206,1751371850289,-365.158444,0.00019178,2]
[368819208,1751371850298,-1344.96,0.000192,2]
[368819210,1751371850307,-1526.8137405,0.00019232,2]
[368819236,1751371850560,-915.5826996,0.00019232,2]
[368819238,1751371850572,-3327.91784949,0.00019273,2]
[368819240,1751371850581,-460.0,0.00019301,2]
[368819242,1751371850590,-1245.59,0.00019301,2]
[368819244,1751371850599,-2317.87,0.00019301,2]
[368819246,1751371850609,-468.8,0.00019301,2]
[368819248,1751371850618,-1199.56,0.00019301,2]
[368819250,1751371850627,-460.0,0.00019302,2]
[368819252,1751371850636,-460.0,0.00019302,2]
[368819254,1751371850645,-460.0,0.00019302,2]
[368819256,1751371850655,-879.28,0.00019302,2]
[368819258,1751371850664,-902.03,0.00019302,2]
[368819260,1751371850673,-526.89861853,0.00019302,2]
[368819262,1751371850685,-935.7979142,0.00019302,2]
[368819264,1751371850697,-214.27346727,0.00019302,2]
[368819266,1751371850706,-109.13592907,0.00019302,2]
[368819314,1751371851180,-460.0,0.00017384,2]
[368819316,1751371851190,-410.0,0.00017385,2]
[368819318,1751371851199,-472.48,0.00017385,2]
[368819320,1751371851208,-460.0,0.00017385,2]
[368819322,1751371851218,-460.0,0.00017658,2]
[368819324,1751371851228,-460.0,0.00018479,2]
[368819326,1751371851237,-460.0,0.00018482,2]
[368819328,1751371851246,-460.0,0.00018753,2]
[368819330,1751371851256,-460.0,0.00018756,2]
[368819332,1751371851265,-3034.82298194,0.000189,2]
[368819334,1751371851275,-460.0,0.00019027,2]
[368819336,1751371851284,-460.0,0.0001903,2]
[368819338,1751371851294,-3034.82298169,0.00019141,2]
[368819340,1751371851303,-429.3202701,0.00019301,2]
[368819342,1751371851312,-350.86407093,0.00019302,2]
[368819344,1751371851321,-790.99,0.00019302,2]
[368819346,1751371851330,-460.0,0.00019302,2]
[368819348,1751371851339,-460.0,0.00019302,2]
[368819350,1751371851349,-460.0,0.00019302,2]
[368819352,1751371851359,-460.0,0.00019302,2]
[368819354,1751371851368,-1102.59,0.00019302,2]
[368819356,1751371851379,-460.0,0.00019302,2]
[368819358,1751371851389,-460.0,0.00019302,2]
[368819360,1751371851398,-460.0,0.00019302,2]
[368819362,1751371851407,-460.0,0.00019302,2]
[368819364,1751371851417,-524.97,0.00019302,2]
[368819366,1751371851427,-460.0,0.00019303,2]
[368819368,1751371851436,-460.0,0.00019303,2]
[368819370,1751371851444,-460.0,0.00019303,2]
[368819372,1751371851453,-460.0,0.00019303,2]
[368819374,1751371851462,-460.0,0.00019303,2]
[368819376,1751371851471,-460.0,0.00019303,2]
[368819378,1751371851481,-460.0,0.00019303,2]
[368819380,1751371851490,-2319.81,0.00019303,2]
[368819382,1751371851499,-460.0,0.00019303,2]
[368819384,1751371851508,-161.8,0.00019303,2]
[368819385,1751371851517,-460.0,0.00019303,2]
[368819387,1751371851527,-466.18,0.00019303,2]
[368819389,1751371851537,-460.0,0.00019303,2]
[368819392,1751371851548,-460.0,0.00019303,2]
[368819394,1751371851558,-539.56,0.00019303,2]
[368819395,1751371851566,-151.0,0.00019303,2]
[368819397,1751371851576,-151.0,0.00019303,2]
[368819399,1751371851586,-460.0,0.00019303,2]
[368819401,1751371851595,-460.0,0.00019303,2]
[368819403,1751371851607,-460.0,0.00019303,2]
[368819405,1751371851617,-2091.67,0.00019303,2]
[368819407,1751371851627,-460.0,0.00019303,2]
[368819409,1751371851636,-460.0,0.00019304,2]
[368819411,1751371851646,-850.85,0.00019304,2]
[368819413,1751371851655,-579.3,0.00019304,2]
[368819415,1751371851665,-1321.17,0.00019304,2]
[368819417,1751371851675,-460.0,0.00019304,2]
[368819419,1751371851684,-151.0,0.00019304,2]
[368819421,1751371851694,-460.0,0.00019304,2]
[368819423,1751371851704,-151.0,0.00019304,2]
[368819425,1751371851714,-151.0,0.00019304,2]
[368819427,1751371851724,-151.0,0.00019304,2]
[368819429,1751371851734,-151.0,0.00019304,2]
[368819431,1751371851743,-917.67,0.00019304,2]
[368819433,1751371851753,-739.29,0.00019304,2]
[368819435,1751371851762,-3819.64,0.00019304,2]
[368819437,1751371851772,-460.0,0.00019304,2]
[368819439,1751371851782,-151.0,0.00019329,2]
[368819441,1751371851791,-151.0,0.00019329,2]
[368819443,1751371851800,-151.0,0.00019329,2]
[368819445,1751371851809,-282.229524,0.00019329,2]
[368819446,1751371851818,-151.0,0.00019329,2]
[368819448,1751371851827,-151.0,0.00019329,2]
[368819450,1751371851837,-151.0,0.00019329,2]
[368819452,1751371851846,-152.842241,0.00019329,2]
[368819454,1751371851854,-152.842241,0.00019329,2]
[368819456,1751371851864,-151.0,0.00019329,2]
[368819458,1751371851875,-151.0,0.00019329,2]
[368819460,1751371851885,-151.0,0.00019329,2]
[368819462,1751371851894,-151.0,0.00019329,2]
[368819464,1751371851903,-151.0,0.00019329,2]
[368819466,1751371851913,-151.0,0.00019329,2]
[368819468,1751371851923,-151.0,0.00019329,2]
[368819470,1751371851933,-518.387708,0.00019329,2]
[368819472,1751371851944,-151.0,0.00019329,2]
[368819474,1751371851954,-518.387708,0.00019329,2]
[368819476,1751371851963,-151.0,0.00019329,2]
[368819478,1751371851972,-151.0,0.00019329,2]
[368819480,1751371851982,-151.0,0.00019329,2]
[368819482,1751371851991,-151.0,0.00019329,2]
[368819484,1751371852003,-151.0,0.00019329,2]
[368819486,1751371852012,-151.0,0.00019329,2]
[368819488,1751371852021,-151.0,0.00019329,2]
[368819490,1751371852031,-151.0,0.00019329,2]
[368819492,1751371852040,-151.0,0.00019329,2]
[368819494,1751371852049,-151.0,0.00019329,2]
[368819496,1751371852058,-151.0,0.00019329,2]
[368819497,1751371852067,-151.0,0.00019329,2]
[368819499,1751371852076,-151.0,0.00019329,2]
[368819501,1751371852086,-151.0,0.00019329,2]
[368819503,1751371852095,-190.149532,0.00019329,2]
[368819504,1751371852109,-190.149532,0.00019329,2]
[368819505,1751371852119,-100000.0,0.00019329,2]
[368819506,1751371852129,-500.0,0.00019373,2]
[368819507,1751371852139,-500.0,0.00019373,2]
[368819508,1751371852150,-500.0,0.00019373,2]
[368819509,1751371852159,-500.70631354,0.00019373,2]
[368819510,1751371852168,-500.0,0.00019373,2]
[368819511,1751371852180,-500.45460572,0.00019373,2]
[368819512,1751371852189,-500.0,0.00019373,2]
[368819513,1751371852198,-500.0,0.00019373,2]
[368819514,1751371852207,-500.0,0.00019373,2]
[368819515,1751371852215,-441.94601656,0.00019373,2]
[368819516,1751371852224,-484.85022,0.00019373,2]
[368819517,1751371852234,-500.0,0.00019373,2]
[368819518,1751371852243,-500.0,0.00019373,2]
[368819519,1751371852252,-500.0,0.00019373,2]
[368819520,1751371852262,-500.0,0.00019373,2]
[368819521,1751371852271,-167.46898346,0.00019373,2]
[368819522,1751371852281,-172.32907732,0.00019373,2]
[368819523,1751371852290,-500.0,0.00019373,2]
[368819524,1751371852299,-500.0,0.00019373,2]
[368819525,1751371852306,-500.0,0.00019373,2]
[368819526,1751371852314,-500.0,0.00019373,2]
[368819527,1751371852322,-500.0,0.00019373,2]
[368819528,1751371852330,-500.0,0.00019373,2]
[368819529,1751371852340,-500.0,0.00019373,2]
[368819530,1751371852349,-500.0,0.00019373,2]
[368819532,1751371852359,-500.9058487,0.00019373,2]
[368819533,1751371852369,-503.93424813,0.00019373,2]
[368819535,1751371852378,-500.42572882,0.00019373,2]
[368819537,1751371852388,-500.0,0.00019373,2]
[368819539,1751371852397,-500.0,0.00019373,2]
[368819541,1751371852406,-423.65100897,0.00019373,2]
[368819543,1751371852416,-3034.82298169,0.00019383,2]
[368819545,1751371852424,-151.0,0.000194,2]
[368819547,1751371852433,-460.0,0.00019402,2]
[368819549,1751371852442,-460.0,0.00019402,2]
[368819551,1751371852451,-460.0,0.00019402,2]
[368819553,1751371852460,-460.0,0.00019402,2]
[368819555,1751371852469,-765.78,0.00019402,2]
[368819557,1751371852478,-460.0,0.00019403,2]
[368819559,1751371852487,-425.80474303,0.00019403,2]
[368819561,1751371852497,-151.0,0.00019555,2]
[368819563,1751371852506,-151.774939,0.00019555,2]
[368819565,1751371852517,-151.0,0.00019555,2]
[368819567,1751371852526,-151.0,0.00019555,2]
[368819569,1751371852535,-203.05,0.00019575,2]
[368819571,1751371852544,-1245.59,0.00019575,2]
[368819573,1751371852554,-2317.87,0.00019575,2]
[368819575,1751371852563,-468.8,0.00019575,2]
[368819577,1751371852573,-1199.56,0.00019575,2]
[368819579,1751371852582,-528.57002608,0.00019576,2]
[368819581,1751371852592,-460.0,0.00019576,2]
[368819583,1751371852602,-460.0,0.00019576,2]
[368819585,1751371852613,-879.28,0.00019576,2]
[368819587,1751371852622,-902.03,0.00019576,2]
[368819589,1751371852632,-1676.97,0.00019576,2]
[368819591,1751371852641,-460.0,0.00019576,2]
[368819593,1751371852650,-790.99,0.00019576,2]
[368819595,1751371852659,-460.0,0.00019576,2]
[368819597,1751371852669,-460.0,0.00019576,2]
[368819599,1751371852678,-460.0,0.00019576,2]
[368819601,1751371852688,-460.0,0.00019576,2]
[368819603,1751371852697,-1102.59,0.00019576,2]
[368819605,1751371852707,-460.0,0.00019576,2]
[368819607,1751371852716,-460.0,0.00019576,2]
[368819609,1751371852726,-460.0,0.00019576,2]
[368819611,1751371852735,-460.0,0.00019576,2]
[368819613,1751371852744,-524.97,0.00019576,2]
[368819615,1751371852753,-444.72669004,0.00019577,2]
[368819617,1751371852762,-460.0,0.00019577,2]
[368819619,1751371852771,-460.0,0.00019577,2]
[368819621,1751371852781,-460.0,0.00019577,2]
[368819623,1751371852789,-395.96,0.00019577,2]
[368819625,1751371852799,-460.0,0.00019577,2]
[368819627,1751371852808,-460.0,0.00019577,2]
[368819629,1751371852817,-2319.81,0.00019577,2]
[368819631,1751371852826,-314.29,0.00019577,2]
[368819633,1751371852835,-460.0,0.00019577,2]
[368819635,1751371852844,-466.18,0.00019577,2]
[368819637,1751371852854,-460.0,0.00019577,2]
[368819639,1751371852864,-460.0,0.00019577,2]
[368819641,1751371852873,-460.0,0.00019577,2]
[368819643,1751371852885,-460.0,0.00019577,2]
[368819645,1751371852894,-460.0,0.00019577,2]
[368819657,1751371852995,-2091.67,0.00019577,2]
[368819659,1751371853005,-460.0,0.00019577,2]
[368819661,1751371853015,-460.0,0.00019578,2]
[368819663,1751371853024,-850.85,0.00019578,2]
[368819665,1751371853033,-579.3,0.00019578,2]
[368819667,1751371853042,-1321.17,0.00019578,2]
[368819669,1751371853051,-460.0,0.00019578,2]
[368819671,1751371853061,-452.52,0.00019578,2]
[368819673,1751371853070,-917.67,0.00019578,2]
[368819675,1751371853080,-739.29,0.00019578,2]
[368819677,1751371853089,-3819.64,0.00019578,2]
[368819679,1751371853101,-460.0,0.00019578,2]
[368819681,1751371853112,-500.0,0.00019595,2]
[368819682,1751371853121,-3034.82298169,0.00019624,2]
[368819684,1751371853130,-2442.3964402,0.0001964,2]
[368819686,1751371853140,-460.0,0.00019676,2]
[368819688,1751371853149,-460.0,0.00019676,2]
[368819690,1751371853158,-460.0,0.00019676,2]
[368819692,1751371853167,-765.78,0.00019676,2]
[368819694,1751371853177,-460.0,0.00019677,2]
[368819696,1751371853187,-1245.59,0.00019849,2]
[368819698,1751371853196,-2317.87,0.00019849,2]
[368819700,1751371853205,-468.8,0.00019849,2]
[368819702,1751371853214,-1199.56,0.00019849,2]
[368819704,1751371853224,-460.0,0.0001985,2]
[368819706,1751371853233,-453.23,0.0001985,2]
[368819708,1751371853242,-879.28,0.0001985,2]
[368819710,1751371853252,-902.03,0.0001985,2]
[368819712,1751371853261,-1676.97,0.0001985,2]
[368819714,1751371853271,-460.0,0.0001985,2]
[368819716,1751371853280,-790.99,0.0001985,2]
[368819718,1751371853290,-460.0,0.0001985,2]
[368819720,1751371853299,-460.0,0.0001985,2]
[368819722,1751371853308,-460.0,0.0001985,2]
[368819724,1751371853319,-460.0,0.0001985,2]
[368819726,1751371853330,-1102.59,0.0001985,2]
[368819728,1751371853340,-434.62,0.0001985,2]
[368819730,1751371853350,-460.0,0.0001985,2]
[368819732,1751371853360,-460.0,0.0001985,2]
[368819734,1751371853369,-460.0,0.0001985,2]
[368819736,1751371853378,-524.97,0.0001985,2]
[368819738,1751371853388,-357.59,0.00019851,2]
[368819740,1751371853397,-400.84,0.00019851,2]
[368819742,1751371853406,-460.0,0.00019851,2]
[368819744,1751371853416,-493.7,0.00019851,2]
[368819746,1751371853425,-460.0,0.00019851,2]
[368819749,1751371853435,-2319.81,0.00019851,2]
[368819750,1751371853445,-460.0,0.00019851,2]
[368819752,1751371853454,-466.18,0.00019851,2]
[368819754,1751371853464,-460.0,0.00019851,2]
[368819756,1751371853476,-460.0,0.00019851,2]
[368819759,1751371853486,-460.0,0.00019851,2]
[368819761,1751371853496,-540.81,0.00019851,2]
[368819763,1751371853505,-460.0,0.00019851,2]
[368819765,1751371853514,-2091.67,0.00019851,2]
[368819767,1751371853524,-460.0,0.00019851,2]
[368819769,1751371853533,-460.0,0.00019852,2]
[368819771,1751371853542,-850.85,0.00019852,2]
[368819773,1751371853551,-579.3,0.00019852,2]
[368819775,1751371853561,-1321.17,0.00019852,2]
[368819777,1751371853570,-331.40703334,0.00019852,2]
[368819779,1751371853579,-917.67,0.00019852,2]
[368819781,1751371853588,-739.29,0.00019852,2]
[368819783,1751371853598,-3819.64,0.00019852,2]
[368819785,1751371853607,-460.0,0.00019852,2]
[368819786,1751371853618,-3034.82298169,0.00019866,2]
[368819789,1751371853628,-200.11115545,0.000199,2]
[368819791,1751371853638,-1000.0,0.00019921,2]
[368819793,1751371853647,-1000.0,0.00019921,2]
[368819795,1751371853656,-1000.0,0.00019921,2]
[368819797,1751371853665,-971.9089426,0.00019921,2]
[368819799,1751371853675,-1000.0,0.00019921,2]
[368819801,1751371853684,-1000.0,0.00019921,2]
[368819803,1751371853693,-151.0,0.00019921,2]
[368819804,1751371853703,-460.0,0.0001995,2]
[368819807,1751371853712,-460.0,0.0001995,2]
[368819809,1751371853722,-460.0,0.0001995,2]
[368819811,1751371853732,-765.78,0.0001995,2]
[368819813,1751371853742,-460.0,0.00019951,2]
[368819815,1751371853751,-520.79751838,0.00019953,2]
[368819817,1751371853760,-151.0,0.00020029,2]
[368819819,1751371853770,-151.0,0.00020029,2]
[368819822,1751371853791,-151.0,0.000201,4]
[368819824,1751371853800,-3034.82298169,0.00020107,2]
[368819826,1751371853810,-1245.59,0.00020123,2]
[368819828,1751371853819,-2317.87,0.00020123,2]
[368819830,1751371853829,-468.8,0.00020123,2]
[368819832,1751371853838,-1199.56,0.00020123,2]
[368819834,1751371853848,-460.0,0.00020124,2]
[368819836,1751371853858,-879.28,0.00020124,2]
[368819838,1751371853868,-902.03,0.00020124,2]
[368819840,1751371853877,-1676.97,0.00020124,2]
[368819842,1751371853887,-460.0,0.00020124,2]
[368819844,1751371853896,-790.99,0.00020124,2]
[368819846,1751371853906,-608.0296124,0.00020124,2]
[368819848,1751371853917,-408.12,0.00020124,2]
[368819850,1751371853926,-460.0,0.00020124,2]
[368819852,1751371853936,-460.0,0.00020124,2]
[368819854,1751371853946,-239.270683,0.00020124,2]
[368819856,1751371853956,-1102.59,0.00020124,2]
[368819858,1751371853966,-151.0,0.00020124,2]
[368819860,1751371853975,-151.0,0.00020124,2]
[368819862,1751371853984,-176.470104,0.00020124,2]
[368819864,1751371853994,-460.0,0.00020124,2]
[368819866,1751371854004,-151.0,0.00020124,2]
[368819868,1751371854013,-460.0,0.00020124,2]
[368819870,1751371854023,-460.0,0.00020124,2]
[368819872,1751371854032,-524.97,0.00020124,2]
[368819874,1751371854042,-460.0,0.00020125,2]
[368819876,1751371854051,-460.0,0.00020125,2]
[368819879,1751371854062,-2319.81,0.00020125,2]
[368819881,1751371854071,-460.0,0.00020125,2]
[368819883,1751371854080,-466.18,0.00020125,2]
[368819885,1751371854090,-154.222511,0.00020125,2]
[368819887,1751371854099,-460.0,0.00020125,2]
[368819889,1751371854113,-151.0,0.00020125,2]
[368819891,1751371854123,-460.0,0.00020125,2]
[368819893,1751371854132,-190.149532,0.00020125,2]
[368819895,1751371854142,-190.149532,0.00020125,2]
[368819897,1751371854152,-460.0,0.00020125,2]
[368819899,1751371854162,-460.0,0.00020125,2]
[368819901,1751371854173,-2091.67,0.00020125,2]
[368819903,1751371854183,-460.0,0.00020125,2]
[368819904,1751371854193,-460.0,0.00020126,2]
[368819905,1751371854203,-850.85,0.00020126,2]
[368819906,1751371854212,-579.3,0.00020126,2]
[368819907,1751371854221,-1321.17,0.00020126,2]
[368819908,1751371854231,-917.67,0.00020126,2]
[368819909,1751371854241,-675.6122382,0.00020126,2]
[368819910,1751371854259,-63.6777618,0.00020126,2]
[368819911,1751371854268,-1011.81088515,0.00020126,2]
[368819912,1751371854280,-2807.82911485,0.00020126,2]
[368819913,1751371854290,-460.0,0.00020126,2]
[368819914,1751371854299,-455.931083,0.00020187,2]
[368819915,1751371854309,-800.0,0.00020205,2]
[368819916,1751371854318,-16009.73250843,0.0002022,2]
[368819917,1751371854330,-8990.26749157,0.0002022,2]
[368819918,1751371854339,-5000.0,0.0002022,2]
[368819919,1751371854349,-690.642,0.0002022,2]
[368819920,1751371854359,-10506.53912703,0.0002022,2]
[368819921,1751371854371,-2309.09126276,0.0002022,2]
[368819922,1751371854380,-2212.12920063,0.0002022,2]
[368819923,1751371854396,-2595.40113345,0.0002022,2]
[368819924,1751371854405,-151.0,0.0002022,2]
[368819925,1751371854415,-298.60925501,0.0002022,2]
[368819926,1751371854424,-207.4,0.0002022,2]
[368819927,1751371854435,-500.0,0.0002022,2]
[368819928,1751371854444,-500.0,0.0002022,2]
[368819929,1751371854454,-500.0,0.0002022,2]
[368819930,1751371854463,-500.0,0.0002022,2]
[368819931,1751371854472,-500.0,0.0002022,2]
[368819932,1751371854482,-500.0,0.0002022,2]
[368819933,1751371854492,-500.0,0.0002022,2]
[368819934,1751371854501,-500.0,0.0002022,2]
[368819936,1751371854510,-500.0,0.0002022,2]
[368819937,1751371854520,-500.0,0.0002022,2]
[368819938,1751371854530,-500.0,0.0002022,2]
[368819940,1751371854540,-500.0,0.0002022,2]
[368819942,1751371854549,-500.0,0.0002022,2]
[368819943,1751371854559,-500.0,0.0002022,2]
[368819944,1751371854568,-500.0,0.0002022,2]
[368819945,1751371854578,-500.0,0.0002022,2]
[368819946,1751371854587,-500.0,0.0002022,2]
[368819947,1751371854597,-500.0,0.0002022,2]
[368819948,1751371854606,-500.0,0.0002022,2]
[368819949,1751371854616,-500.0,0.0002022,2]
[368819950,1751371854625,-500.0,0.0002022,2]
[368819951,1751371854635,-500.0,0.0002022,2]
[368819952,1751371854645,-460.0,0.00020224,2]
[368819953,1751371854655,-151.0,0.00020224,2]
[368819954,1751371854665,-460.0,0.00020224,2]
[368819955,1751371854674,-151.0,0.00020224,2]
[368819956,1751371854683,-151.0,0.00020224,2]
[368819957,1751371854693,-152.842241,0.00020224,2]
[368819958,1751371854702,-152.842241,0.00020224,2]
[368819959,1751371854712,-151.0,0.00020224,2]
[368819960,1751371854722,-151.0,0.00020224,2]
[368819961,1751371854731,-151.0,0.00020224,2]
[368819962,1751371854741,-151.0,0.00020224,2]
[368819963,1751371854750,-151.0,0.00020224,2]
[368819964,1751371854759,-460.0,0.00020224,2]
[368819965,1751371854769,-518.387708,0.00020224,2]
[368819966,1751371854779,-518.387708,0.00020224,2]
[368819967,1751371854790,-765.78,0.00020224,2]
[368819968,1751371854799,-151.0,0.00020224,2]
[368819969,1751371854808,-151.0,0.00020224,2]
[368819970,1751371854818,-598.306982,0.00020225,2]
[368819971,1751371854827,-151.487986,0.00020225,2]
[368819972,1751371854837,-151.0,0.00020225,2]
[368819980,1751371854968,-151.0,0.00020225,2]
[368819982,1751371854978,-150.0,0.00020273,2]
[368819984,1751371854987,-716.195754,0.00020275,2]
[368819986,1751371854998,-742.6949969,0.0002033,2]
[368819988,1751371855007,-3034.82298169,0.00020348,3]
[368819990,1751371855016,-151.0,0.00020383,2]
[368819992,1751371855025,-151.0,0.00020383,2]
[368819994,1751371855034,-151.0,0.00020383,2]
[368819996,1751371855043,-151.0,0.00020383,2]
[368819998,1751371855053,-151.0,0.00020383,2]
[368820000,1751371855062,-151.0,0.00020383,2]
[368820002,1751371855071,-151.0,0.00020383,2]
[368820004,1751371855080,-151.0,0.00020383,2]
[368820006,1751371855089,-151.0,0.00020383,2]
[368820008,1751371855098,-740.83224328,0.00020385,2]
[368820011,1751371855119,-29.3424685,0.00020385,2]
[368820013,1751371855128,-394.55165314,0.00020397,2]
[368820015,1751371855139,-460.0,0.00020397,2]
[368820026,1751371855236,-298.23569615,0.00017383,2]
[368820062,1751371855565,-161.76430385,0.00017383,2]
[368820064,1751371855574,-331.51825768,0.00017385,2]
[368820076,1751371855682,-184.75771427,0.00017385,2]
[368820078,1751371855691,-460.0,0.00017385,2]
[368820080,1751371855701,-500.0,0.0002022,2]
[368820082,1751371855710,-500.0,0.0002022,2]
[368820084,1751371855720,-500.0,0.0002022,2]
[368820086,1751371855729,-391.03834686,0.00020397,2]
[368820088,1751371855739,-528.5769478,0.00020397,2]
[368820131,1751371856133,-1453.70310015,0.00020397,2]
[368820133,1751371856145,-335.58995205,0.00020397,2]
[368820135,1751371856154,-468.8,0.00020397,2]
[368820137,1751371856164,-1199.56,0.00020397,2]
[368820139,1751371856173,-646.47988316,0.00020398,2]
[368820159,1751371856358,-232.80011684,0.00020398,2]
[368820161,1751371856367,-902.03,0.00020398,2]
[368820163,1751371856377,-1676.97,0.00020398,2]
[368820165,1751371856386,-164.4,0.00020398,2]
[368820167,1751371856395,-242.59174746,0.00020398,2]
[368820170,1751371856407,-548.39825254,0.00020398,2]
[368820172,1751371856416,-460.0,0.00020398,2]
[368820174,1751371856426,-519.77,0.00020398,2]
[368820176,1751371856436,-1102.59,0.00020398,2]
[368820178,1751371856446,-460.0,0.00020398,2]
[368820180,1751371856455,-460.0,0.00020398,2]
[368820182,1751371856465,-460.0,0.00020398,2]
[368820184,1751371856475,-312.30401953,0.00020398,2]
[368820186,1751371856487,-212.66598047,0.00020398,2]
[368820188,1751371856496,-100.66057753,0.00020399,2]
[368820191,1751371856507,-359.33942247,0.00020399,2]
[368820192,1751371856517,-460.0,0.00020399,2]
[368820195,1751371856527,-2319.81,0.00020399,2]
[368820197,1751371856536,-367.83,0.00020399,2]
[368820199,1751371856546,-466.18,0.00020399,2]
[368820201,1751371856555,-460.0,0.00020399,2]
[368820203,1751371856564,-511.02,0.00020399,2]
[368820205,1751371856573,-365.73716483,0.00020399,2]
[368820207,1751371856586,-94.26283517,0.00020399,2]
[368820209,1751371856595,-334.07,0.00020399,2]
[368820211,1751371856605,-2091.67,0.00020399,2]
[368820213,1751371856615,-460.0,0.00020399,2]
[368820215,1751371856624,-850.85,0.000204,2]
[368820217,1751371856634,-579.3,0.000204,2]
[368820219,1751371856644,-1321.17,0.000204,2]
[368820221,1751371856653,-917.67,0.000204,2]
[368820223,1751371856663,-739.29,0.000204,2]
[368820225,1751371856672,-3819.64,0.000204,2]
[368820227,1751371856682,-460.0,0.000204,2]
[368820229,1751371856692,-798.67117612,0.0002044,2]
[368820231,1751371856702,-828.22200964,0.00020495,2]
[368820233,1751371856711,-221.54343307,0.00020498,2]
[368820235,1751371856723,-238.45656693,0.00020498,2]
[368820246,1751371856732,-153.73412468,0.00020498,2]
[368820252,1751371856856,239.54502866,0.00017285,2]
[368822157,1751371941305,79553.28056176,0.00017285,2]
[368822158,1751372011034,274.6,0.00025158,120]
[368822159,1751372037359,238.54161153,0.00017284,2]
[368822160,1751372069011,466.0,0.00017,2]
[368822161,1751372131407,10000.0,0.00016589,2]
[368822162,1751372228341,208.72391008,0.00017283,2]
[368822163,1751372274433,3712.76545361,0.0002513,60]
[368822165,1751372333088,500.475846,0.00016521,2]
[368822167,1751372418683,182.63342132,0.00017282,2]
[368822171,1751372604061,159.80424369,0.00017281,2]
[368822172,1751372662470,434.377401,0.00013699,2]
[368822174,1751372722741,182.844302,0.00016514,2]
[368822175,1751372722938,182.844302,0.00016514,120]
[368822176,1751372732832,-252.99,0.00017375,3]
[368822177,1751372732856,-3.56366161,0.00017375,3]
[368822178,1751372765808,24900.0,0.00016383,2]
[368822182,1751372793469,7607.93594004,0.00017,2]
[368822183,1751372793500,2412.45621196,0.00017,2]
[368822184,1751372794587,159.80424362,0.00017281,2]
[368822185,1751372826137,-426.6258198,0.00017375,3]
[368822186,1751372834140,-328.82051859,0.00017375,3]
[368822187,1751372834162,-913.17948141,0.00017379,2]
[368822188,1751372835086,-282.00457779,0.00017379,2]
[368822189,1751372837250,-4.8159408,0.00017379,2]
[368822190,1751372837271,-177.92676166,0.00017379,2]
[368822191,1751372850091,-122.07323834,0.00017379,2]
[368822192,1751372850113,-303.76682082,0.0001738,2]
[368822193,1751372850135,-52.69934682,0.0001738,2]
[368822194,1751372895670,3142.83067888,0.00016384,2]
[368822195,1751372895692,1372.92467242,0.00016384,2]
[368822197,1751372919996,675.58630465,0.0001,7]
[368822208,1751372961122,-171.93902747,0.00017379,2]
[368822209,1751372966132,-1.20211797,0.00017379,2]
[368822210,1751372966155,-300.0,0.00017379,2]
[368822211,1751372966177,-422.1167207,0.0001738,2]
[368822213,1751372968184,-37.8832793,0.0001738,2]